bitfinex/quotes_BTCUSD_20240828
["timestamp","ask_amount","ask_price","bid_price","bid_amount"]
[1724807921406,0.168706,59275.0,59264.0,0.100815]
[1724807921606,0.0042185,59274.0,59266.0,0.001]
[1724807922027,0.0042185,59274.0,59264.0,0.100815]
[1724807922236,0.0042185,59274.0,59264.0,0.101815]
[1724807922457,0.0042185,59274.0,59265.0,0.1]
[1724807922679,0.0042185,59273.0,59264.0,0.001815]
[1724807923508,0.0042185,59273.0,59264.0,0.000815]
[1724807923716,0.168717,59271.0,59264.0,0.000815]
[1724807923940,0.168717,59271.0,59266.0,0.004]
[1724807923941,0.00421865,59270.0,59266.0,0.004]
[1724807924150,0.00421865,59270.0,59264.0,0.000815]
[1724807924151,0.148,59269.0,59265.0,0.002]
[1724807924362,0.17294617,59268.0,59265.0,0.002]
[1724807924600,0.16873,59266.0,59265.0,0.002818]
[1724807924873,0.17294914,59266.0,59265.0,0.002818]
[1724807925066,1.01633191,59266.0,59265.0,0.002818]
[1724807925485,0.34140991,59266.0,59265.0,0.002818]
[1724807925925,1.01633191,59266.0,59265.0,0.002818]
[1724807926611,1.01633191,59266.0,59265.0,0.006818]
[1724807926800,1.01633191,59266.0,59265.0,0.002818]
[1724807927006,0.67887091,59266.0,59265.0,0.002818]
[1724807927232,0.68187091,59266.0,59265.0,0.003818]
[1724807927450,0.68187091,59266.0,59265.0,0.002818]
[1724807927709,1.01933191,59266.0,59265.0,0.002818]
[1724807927961,1.02133191,59266.0,59265.0,0.002818]
[1724807928617,1.01633191,59266.0,59265.0,0.002818]
[1724807929935,1.01933191,59266.0,59265.0,0.002818]
[1724807930143,1.01633191,59266.0,59265.0,0.002818]
[1724807930577,1.01833191,59266.0,59265.0,0.002818]
[1724807931028,0.82327091,59266.0,59265.0,0.000818]
[1724807931933,1.16073191,59266.0,59265.0,0.000818]
[1724807932935,1.15873191,59266.0,59265.0,0.000818]
[1724807934247,0.82127091,59266.0,59265.0,0.000818]
[1724807934455,0.82227091,59266.0,59265.0,0.000818]
[1724807937431,0.90077886,59266.0,59265.0,0.000818]
[1724807937633,1.98266186,59266.0,59265.0,0.000818]
[1724807937858,2.00566186,59266.0,59265.0,0.000818]
[1724807938062,0.342581,59245.0,59243.0,0.002815]
[1724807938212,1.18891277,59245.0,59243.0,0.002815]
[1724807938417,1.52649377,59245.0,59243.0,0.002815]
[1724807938627,1.86407477,59245.0,59243.0,0.000815]
[1724807938848,2.18281828,59245.0,59243.0,0.000815]
[1724807939068,2.24651828,59245.0,59243.0,0.000815]
[1724807939456,2.34651828,59245.0,59243.0,0.000815]
[1724807939657,1.695637,59244.0,59243.0,0.000815]
[1724807939893,1.86409777,59244.0,59243.0,0.000815]
[1724807940253,1.52651177,59244.0,59243.0,0.000815]
[1724807941693,1.21037552,59244.0,59243.0,0.000815]
[1724807942385,0.71528952,59244.0,59243.0,0.000815]
[1724807942605,0.70128952,59244.0,59243.0,0.000815]
[1724807942837,1.03887552,59244.0,59243.0,0.000815]
[1724807943055,1.04687552,59244.0,59243.0,0.000815]
[1724807943273,1.03887552,59244.0,59243.0,0.000815]
[1724807943508,0.03244975,59244.0,59243.0,0.000815]
[1724807943726,0.51059958,59244.0,59243.0,0.000815]
[1724807943969,1.01664635,59244.0,59243.0,0.000815]
[1724807944206,1.54433235,59244.0,59243.0,0.000815]
[1724807944417,1.35823235,59244.0,59243.0,0.000815]
[1724807944629,1.02064635,59244.0,59243.0,0.000815]
[1724807945969,0.17701358,59244.0,59243.0,0.000815]
[1724807946188,0.17701358,59244.0,59243.0,0.180015]
[1724807947513,0.85218558,59244.0,59243.0,0.180015]
[1724807947753,0.51459958,59244.0,59243.0,0.000815]
[1724807947975,0.85218558,59244.0,59243.0,0.000815]
[1724807948190,1.18977158,59244.0,59243.0,0.000815]
[1724807948415,1.53623235,59244.0,59243.0,0.000815]
[1724807948634,1.87381835,59244.0,59243.0,0.000815]
[1724807948856,1.53623235,59244.0,59243.0,0.000815]
[1724807949086,1.61741235,59244.0,59243.0,0.000815]
[1724807949563,1.61341235,59244.0,59243.0,0.000815]
[1724807949772,1.62741235,59244.0,59243.0,0.000815]
[1724807949998,1.61341235,59244.0,59243.0,0.000815]
[1724807950480,1.62741235,59244.0,59243.0,0.000815]
[1724807950704,1.96499835,59244.0,59243.0,0.000815]
[1724807950950,1.66186177,59244.0,59243.0,0.000815]
[1724807951155,1.15127577,59244.0,59243.0,0.000815]
[1724807952192,1.48886177,59244.0,59243.0,0.000815]
[1724807952396,1.46186177,59244.0,59243.0,0.000815]
[1724807952787,1.47186177,59244.0,59243.0,0.000815]
[1724807953162,1.13427577,59244.0,59243.0,0.000815]
[1724807953641,1.47186177,59244.0,59243.0,0.000815]
[1724807955439,1.13427577,59244.0,59243.0,0.000815]
[1724807955969,1.47186177,59244.0,59243.0,0.000815]
[1724807957288,1.44541235,59244.0,59243.0,0.000815]
[1724807957509,1.10782635,59244.0,59243.0,0.000815]
[1724807957923,1.44541235,59244.0,59243.0,0.000815]
[1724807958128,1.10782635,59244.0,59243.0,0.000815]
[1724807958784,1.44541235,59244.0,59243.0,0.000815]
[1724807958988,1.10782635,59244.0,59243.0,0.000815]
[1724807959211,1.45041235,59244.0,59243.0,0.000815]
[1724807959454,1.62851235,59244.0,59243.0,0.000815]
[1724807960675,1.4718613,59244.0,59243.0,0.000815]
[1724807961394,1.47276111,59244.0,59243.0,0.000815]
[1724807964137,1.47776111,59244.0,59243.0,0.000815]
[1724807964351,1.71956111,59244.0,59243.0,0.000815]
[1724807964602,2.05714711,59244.0,59243.0,0.000815]
[1724807965254,2.22147817,59244.0,59243.0,0.000815]
[1724807965514,2.22147817,59244.0,59218.0,0.00818]
[1724807965515,0.342609,59240.0,59220.0,0.002]
[1724807965756,1.213638,59240.0,59219.0,0.002]
[1724807966005,0.844322,59219.0,59218.0,0.00818]
[1724807966252,1.35051177,59219.0,59218.0,0.00818]
[1724807966732,1.3769683,59219.0,59218.0,0.00818]
[1724807966967,1.3819683,59219.0,59218.0,0.00818]
[1724807967187,1.7196973,59219.0,59218.0,0.00818]
[1724807967404,1.69324077,59219.0,59218.0,0.00818]
[1724807967615,1.87164077,59219.0,59218.0,0.00818]
[1724807968071,1.89464077,59219.0,59218.0,0.00818]
[1724807968492,1.89564077,59219.0,59218.0,0.00818]
[1724807968947,1.89464077,59219.0,59218.0,0.00818]
[1724807969159,1.90864077,59219.0,59218.0,0.00818]
[1724807969387,1.89464077,59219.0,59218.0,0.00818]
[1724807969802,1.90864077,59219.0,59218.0,0.00818]
[1724807970031,1.53391177,59219.0,59218.0,0.00818]
[1724807970453,1.52891177,59219.0,59218.0,0.00818]
[1724807970691,0.168859,59221.0,59218.0,0.00818]
[1724807970902,0.337687,59227.0,59218.0,0.00818]
[1724807971104,0.337695,59225.0,59219.0,0.171]
[1724807971303,0.33730577,59226.0,59219.0,0.171]
[1724807971456,0.168854,59223.0,59219.0,0.171]
[1724807971661,0.173079,59222.0,59219.0,0.171]
[1724807971859,0.173079,59222.0,59219.0,0.157]
[1724807971860,0.844307,59220.0,59219.0,0.157]
[1724807972288,1.01276777,59220.0,59219.0,0.157]
[1724807973101,0.844322,59219.0,59218.0,0.00818]
[1724807973534,1.35051177,59219.0,59218.0,0.00818]
[1724807974674,1.01278277,59219.0,59218.0,0.00818]
[1724807974889,0.02645755,59220.0,59219.0,0.1471]
[1724807975116,0.168843,59227.0,59219.0,0.3314]
[1724807975330,0.17306789,59226.0,59219.0,0.3314]
[1724807975641,0.00422189,59226.0,59219.0,0.3314]
[1724807975933,0.00422189,59226.0,59219.0,0.3214]
[1724807976228,0.168856,59222.0,59219.0,0.3214]
[1724807976382,0.00422189,59221.0,59219.0,0.3214]
[1724807977442,0.00422188,59223.0,59219.0,0.3214]
[1724807978258,0.00422188,59223.0,59219.0,0.3224]
[1724807978465,0.00422188,59223.0,59219.0,0.3214]
[1724807978820,0.00422188,59223.0,59219.0,0.3274]
[1724807979000,0.00422188,59223.0,59219.0,0.3214]
[1724807979408,0.00422182,59224.0,59219.0,0.3324]
[1724807979630,0.337661,59231.0,59220.0,0.1757]
[1724807979814,0.337676,59229.0,59222.0,0.1757]
[1724807980020,0.168843,59227.0,59222.0,0.1757]
[1724807980295,0.1730656,59226.0,59222.0,0.1757]
[1724807981111,0.168851,59224.0,59222.0,0.1757]
[1724807981316,0.0042216,59223.0,59222.0,0.1757]
[1724807982409,0.506568,59222.0,59221.0,0.1477]
[1724807982986,0.84428,59222.0,59221.0,0.1477]
[1724807984032,0.84428,59222.0,59221.0,0.1597]
[1724807984667,0.168856,59222.0,59221.0,0.1597]
[1724807984885,0.00422168,59225.0,59222.0,0.1757]
[1724807985023,0.168837,59229.0,59222.0,0.1757]
[1724807985225,0.5103374,59232.0,59222.0,0.1757]
[1724807985226,0.17306163,59228.0,59222.0,0.1757]
[1724807985451,0.168842,59227.0,59222.0,0.1757]
[1724807985652,0.168842,59227.0,59221.0,0.1537]
[1724807985653,0.16975581,59222.0,59221.0,0.1477]
[1724807986011,0.84517981,59222.0,59221.0,0.1477]
[1724807986342,0.50746781,59222.0,59221.0,0.1477]
[1724807988172,0.00089981,59222.0,59221.0,0.1477]
[1724807988381,0.00512165,59222.0,59221.0,0.1517]
[1724807988587,0.00512165,59222.0,59221.0,0.1477]
[1724807988835,0.17397765,59222.0,59221.0,0.1477]
[1724807989014,0.17397765,59222.0,59221.0,0.1517]
[1724807989213,0.84940165,59222.0,59221.0,0.1517]
[1724807989445,0.84940165,59222.0,59221.0,0.1477]
[1724807989658,0.51168965,59222.0,59221.0,0.1477]
[1724807989839,0.51168965,59222.0,59221.0,0.1537]
[1724807990335,0.51168965,59222.0,59221.0,0.1477]
[1724807990775,0.506584,59220.0,59219.0,0.000818]
[1724807990986,1.01276777,59220.0,59219.0,0.000818]
[1724807991677,1.35049077,59220.0,59219.0,0.000818]
[1724807991890,1.01276777,59220.0,59219.0,0.000818]
[1724807992118,1.01276777,59220.0,59219.0,0.002818]
[1724807993626,0.67504477,59220.0,59219.0,0.002818]
[1724807994072,0.506584,59220.0,59219.0,0.002818]
[1724807994297,0.168861,59220.0,59219.0,0.180418]
[1724807994552,0.17308304,59220.0,59219.0,0.180418]
[1724807995088,0.51080604,59220.0,59219.0,0.180418]
[1724807995298,0.84852904,59220.0,59219.0,0.180418]
[1724807995536,0.84852904,59220.0,59219.0,0.002818]
[1724807996419,0.51080604,59220.0,59219.0,0.002818]
[1724807997573,0.84852904,59220.0,59219.0,0.002818]
[1724807998219,0.84942885,59220.0,59219.0,0.002818]
[1724807999080,1.35561262,59220.0,59219.0,0.002818]
[1724808002268,1.36061262,59220.0,59219.0,0.002818]
[1724808002498,1.54811262,59220.0,59219.0,0.002818]
[1724808004052,1.01788962,59220.0,59219.0,0.002818]
[1724808004260,0.17398285,59220.0,59219.0,0.002818]
[1724808004497,0.17398285,59220.0,59219.0,0.140318]
[1724808004498,0.51170585,59220.0,59219.0,0.140318]
[1724808004700,0.17398285,59220.0,59219.0,0.140318]
[1724808007060,0.00512185,59220.0,59219.0,0.140318]
[1724808007282,0.17398285,59220.0,59219.0,0.140318]
[1724808008178,0.00089981,59220.0,59219.0,0.140318]
[1724808009065,0.00089981,59220.0,59219.0,0.138318]
[1724808009292,0.00089981,59220.0,59219.0,0.140318]
[1724808009923,0.16976081,59220.0,59219.0,0.140318]
[1724808010138,0.17398278,59220.0,59219.0,0.140318]
[1724808010358,0.51170578,59220.0,59219.0,0.140318]
[1724808010582,0.00512178,59220.0,59219.0,0.138318]
[1724808010812,0.00512178,59220.0,59219.0,0.332718]
[1724808010813,0.00089981,59220.0,59219.0,0.332718]
[1724808011087,0.00089981,59220.0,59219.0,0.322718]
[1724808011515,0.00089981,59220.0,59219.0,0.328718]
[1724808011728,0.00089981,59220.0,59219.0,0.3326135]
[1724808012168,0.00089981,59220.0,59219.0,0.3456135]
[1724808012392,0.00089981,59220.0,59219.0,0.322718]
[1724808012600,0.50748381,59220.0,59219.0,0.322718]
[1724808012813,0.84520681,59220.0,59219.0,0.000818]
[1724808013450,0.16976081,59220.0,59219.0,0.000818]
[1724808013659,0.17398293,59220.0,59219.0,0.000818]
[1724808013874,0.00512193,59220.0,59219.0,0.014818]
[1724808014087,0.00512193,59220.0,59219.0,0.000818]
[1724808014271,0.00512193,59220.0,59219.0,0.013818]
[1724808014719,0.00512193,59220.0,59219.0,0.000818]
[1724808015153,0.17398293,59220.0,59219.0,0.006818]
[1724808015384,0.17398293,59220.0,59219.0,0.000818]
[1724808015592,0.17398293,59220.0,59219.0,0.009818]
[1724808016225,0.00512193,59220.0,59219.0,0.009818]
[1724808016644,0.00512193,59220.0,59219.0,0.185918]
[1724808017108,0.00512193,59220.0,59219.0,0.176918]
[1724808017342,0.00512193,59220.0,59219.0,0.325818]
[1724808017343,0.00089981,59220.0,59219.0,0.325818]
[1724808017571,0.00089981,59220.0,59219.0,0.332818]
[1724808017792,0.00089981,59220.0,59219.0,0.325818]
[1724808018017,0.00089981,59220.0,59219.0,0.334818]
[1724808018470,0.00089981,59220.0,59219.0,0.325818]
[1724808018688,0.00089981,59220.0,59219.0,0.337818]
[1724808018887,0.00089981,59220.0,59219.0,0.325818]
[1724808020393,0.00089981,59220.0,59219.0,0.338818]
[1724808020602,0.00089981,59220.0,59219.0,0.325818]
[1724808021074,0.00089981,59220.0,59219.0,0.339818]
[1724808021314,0.00089981,59220.0,59219.0,0.63600464]
[1724808021553,0.05037517,59237.0,59226.0,0.1472]
[1724808021769,0.05037517,59243.0,59236.0,0.29618664]
[1724808022015,0.58748767,59244.0,59243.0,0.62728664]
[1724808022217,0.08207981,59244.0,59243.0,0.89574741]
[1724808022465,0.08207981,59244.0,59243.0,0.91874741]
[1724808023346,0.08207981,59244.0,59243.0,0.96937225]
[1724808023581,0.08207981,59244.0,59243.0,0.91874741]
[1724808024262,0.08207981,59244.0,59243.0,0.93274741]
[1724808024495,0.08207981,59244.0,59243.0,0.91874741]
[1724808024677,0.08207981,59244.0,59243.0,0.93274741]
[1724808025347,0.08207981,59244.0,59243.0,0.91874741]
[1724808026056,0.08207981,59244.0,59235.0,0.05062484]
[1724808026057,0.08207981,59244.0,59235.0,0.23902484]
[1724808026282,0.08207981,59244.0,59236.0,0.1462]
[1724808026283,0.168811,59238.0,59236.0,0.1462]
[1724808026508,0.168811,59238.0,59229.0,0.1884]
[1724808026509,0.16882,59235.0,59230.0,0.1462]
[1724808026716,0.168811,59238.0,59230.0,0.1462]
[1724808026936,0.00422091,59238.0,59230.0,0.1462]
[1724808027154,0.08207981,59244.0,59230.0,0.1462]
[1724808027155,0.08207981,59244.0,59233.0,0.1884]
[1724808027368,0.08207981,59244.0,59243.0,0.014]
[1724808027851,0.1811,59252.0,59243.0,0.014]
[1724808027852,0.05040215,59268.0,59245.0,0.1884]
[1724808028045,0.50540786,59259.0,59252.0,0.1462]
[1724808028256,0.168717,59271.0,59259.0,0.29618664]
[1724808028467,0.00421841,59270.0,59259.0,0.46464741]
[1724808028684,0.00421841,59270.0,59260.0,0.1884]
[1724808028892,0.00421841,59270.0,59261.0,0.1462]
[1724808029537,0.00421841,59269.0,59261.0,0.1462]
[1724808029740,0.00089981,59274.0,59261.0,0.1462]
[1724808029741,0.00421841,59272.0,59261.0,0.1462]
[1724808030473,0.17293341,59272.0,59261.0,0.1462]
[1724808030697,0.002,59271.0,59261.0,0.1462]
[1724808030907,0.00421864,59270.0,59261.0,0.1462]
[1724808031126,0.168723,59269.0,59261.0,0.1462]
[1724808031348,0.00421864,59268.0,59261.0,0.1462]
[1724808031564,0.0141127,59268.0,59261.0,0.1462]
[1724808032011,0.1813,59267.0,59261.0,0.1502]
[1724808032221,0.17295078,59266.0,59261.0,0.1462]
[1724808032430,0.18281788,59266.0,59261.0,0.1462]
[1724808032665,0.01408588,59266.0,59261.0,0.1462]
[1724808032884,0.18281588,59266.0,59261.0,0.1462]
[1724808033120,0.01408588,59266.0,59261.0,0.1462]
[1724808033599,0.01408588,59266.0,59261.0,0.1522]
[1724808033820,0.01408588,59266.0,59261.0,0.1462]
[1724808034294,0.01408588,59266.0,59261.0,0.1472]
[1724808034972,0.00421877,59265.0,59261.0,0.1462]
[1724808035194,0.01534894,59265.0,59261.0,0.1512]
[1724808035837,0.01534894,59265.0,59261.0,0.005]
[1724808036541,0.01534894,59265.0,59251.0,0.1504]
[1724808036542,0.337496,59260.0,59251.0,0.1504]
[1724808036759,0.17297051,59259.0,59251.0,0.1504]
[1724808036986,0.168753,59258.0,59251.0,0.1504]
[1724808037200,0.00421949,59257.0,59251.0,0.1504]
[1724808037621,0.01113176,59256.0,59246.0,0.1502]
[1724808037835,0.17298164,59255.0,59246.0,0.1502]
[1724808038056,0.00421964,59255.0,59251.0,0.006]
[1724808038476,0.01113176,59254.0,59246.0,0.1502]
[1724808038689,0.00421964,59253.0,59246.0,0.1502]
[1724808039115,0.01113176,59254.0,59246.0,0.1502]
[1724808039343,0.00421957,59259.0,59246.0,0.1502]
[1724808039779,0.01113176,59258.0,59251.0,0.008]
[1724808039999,0.00421955,59257.0,59246.0,0.1502]
[1724808040431,0.00421955,59257.0,59246.0,0.1642]
[1724808040661,0.01113176,59256.0,59246.0,0.1502]
[1724808040900,0.00421956,59255.0,59246.0,0.1502]
[1724808041158,0.00421956,59255.0,59251.0,0.009]
[1724808041370,0.00421956,59255.0,59246.0,0.1502]
[1724808041554,0.00421956,59255.0,59246.0,0.1602]
[1724808041794,0.17298256,59255.0,59246.0,0.1602]
[1724808042468,0.00421956,59255.0,59246.0,0.1602]
[1724808042894,0.1788,59254.0,59246.0,0.1602]
[1724808043105,0.00421969,59253.0,59246.0,0.1602]
[1724808043784,0.00421969,59253.0,59246.0,0.1502]
[1724808043991,0.00421969,59253.0,59246.0,0.1632]
[1724808044204,0.00421969,59253.0,59246.0,0.1502]
[1724808044667,0.00421969,59253.0,59246.0,0.1642]
[1724808045319,0.00421969,59253.0,59246.0,0.1502]
[1724808045522,0.00421968,59255.0,59246.0,0.1502]
[1724808045740,0.00421968,59255.0,59246.0,0.1632]
[1724808046611,0.00421968,59255.0,59246.0,0.3632]
[1724808047026,0.00421968,59255.0,59246.0,0.3502]
[1724808047258,0.00421968,59255.0,59246.0,0.3632]
[1724808047476,0.168776,59250.0,59246.0,0.3502]
[1724808047688,0.1826,59254.0,59246.0,0.3502]
[1724808047689,0.00421982,59249.0,59246.0,0.3502]
[1724808047925,0.00421982,59249.0,59246.0,0.3602]
[1724808048139,0.00421982,59253.0,59246.0,0.3602]
[1724808048580,0.00421982,59253.0,59246.0,0.3502]
[1724808049070,0.00421982,59253.0,59247.0,0.1895]
[1724808049289,0.00421964,59252.0,59247.0,0.1895]
[1724808049507,0.01113176,59256.0,59247.0,0.1895]
[1724808049508,0.00421964,59255.0,59247.0,0.1895]
[1724808049718,0.01113176,59256.0,59247.0,0.1895]
[1724808049937,0.00421946,59255.0,59247.0,0.1895]
[1724808050159,0.00421946,59255.0,59254.0,0.36951968]
[1724808050160,0.01274658,59255.0,59254.0,0.36951968]
[1724808050388,0.01274658,59255.0,59254.0,0.51171968]
[1724808050601,0.01113176,59256.0,59254.0,0.3263]
[1724808051751,0.01113176,59256.0,59254.0,0.3403]
[1724808051975,0.01113176,59256.0,59254.0,0.3263]
[1724808053859,0.01113176,59256.0,59254.0,0.3403]
[1724808054048,0.01113176,59256.0,59254.0,0.3543]
[1724808054251,0.01113176,59256.0,59254.0,0.3403]
[1724808054614,0.01113176,59256.0,59254.0,0.3543]
[1724808054812,0.01113176,59256.0,59254.0,0.3263]
[1724808055243,0.01113176,59256.0,59254.0,0.3403]
[1724808056498,0.01113176,59256.0,59254.0,0.3263]
[1724808056914,0.01113176,59256.0,59254.0,0.35023976]
[1724808057325,0.01113176,59256.0,59254.0,0.36423976]
[1724808057738,0.01113176,59256.0,59254.0,0.33623976]
[1724808057948,0.01113176,59256.0,59254.0,0.35023976]
[1724808058156,0.01113176,59256.0,59254.0,0.3263]
[1724808058369,0.01113176,59256.0,59249.0,0.1497]
[1724808058584,0.01701935,59255.0,59254.0,0.014]
[1724808059905,0.01701935,59255.0,59250.0,0.1]
[1724808060169,0.01701935,59255.0,59254.0,0.014]
[1724808060411,0.0128,59255.0,59250.0,0.1]
[1724808060617,0.00421893,59254.0,59251.0,0.1897]
[1724808060840,0.00421893,59254.0,59250.0,0.1]
[1724808060841,0.00421893,59254.0,59252.0,0.1]
[1724808061070,0.00421893,59254.0,59249.0,0.1497]
[1724808061276,0.00421893,59254.0,59246.0,0.3897]
[1724808061277,0.506353,59247.0,59246.0,0.3897]
[1724808061543,1.61485177,59247.0,59246.0,0.2]
[1724808061779,1.29008277,59247.0,59246.0,0.2]
[1724808062020,0.87171377,59247.0,59246.0,0.2]
[1724808062247,0.0128,59247.0,59246.0,0.2]
[1724808062510,0.51882977,59247.0,59246.0,0.2]
[1724808062740,0.67481377,59247.0,59246.0,0.2]
[1724808062963,0.68752823,59247.0,59246.0,0.2]
[1724808063427,1.02509723,59247.0,59246.0,0.2]
[1724808063872,0.68752823,59247.0,59246.0,0.2]
[1724808064109,0.01271446,59247.0,59246.0,0.2]
[1724808064318,0.01271446,59247.0,59246.0,0.208]
[1724808064530,0.1832,59255.0,59246.0,0.206]
[1724808064761,0.01268111,59247.0,59246.0,0.206]
[1724808064969,0.01203157,59256.0,59246.0,0.3584]
[1724808065207,0.01268111,59247.0,59246.0,0.3584]
[1724808065416,0.01203157,59256.0,59246.0,0.5462]
[1724808065644,0.01203157,59256.0,59246.0,0.55608544]
[1724808066075,0.01268111,59255.0,59246.0,0.55608544]
[1724808066596,0.01203157,59256.0,59246.0,0.55008544]
[1724808066772,0.01268111,59254.0,59246.0,0.55008544]
[1724808067009,0.01203157,59256.0,59246.0,0.55008544]
[1724808067224,0.01268111,59253.0,59246.0,0.55008544]
[1724808067435,0.01203157,59256.0,59246.0,0.55808544]
[1724808067654,0.01268111,59252.0,59246.0,0.55808544]
[1724808067931,0.01203157,59256.0,59246.0,0.56708544]
[1724808068143,0.01268111,59251.0,59246.0,0.56708544]
[1724808068359,0.01268111,59251.0,59246.0,0.55008544]
[1724808068570,0.00421933,59250.0,59246.0,0.3524]
[1724808068779,0.506353,59247.0,59246.0,0.3524]
[1724808068992,0.843922,59247.0,59246.0,0.2]
[1724808069211,1.04485367,59247.0,59246.0,0.202]
[1724808069429,1.04485367,59247.0,59246.0,0.2]
[1724808069430,1.55088344,59247.0,59246.0,0.2]
[1724808069635,1.55088344,59247.0,59246.0,0.21]
[1724808070080,1.55088344,59247.0,59246.0,0.2]
[1724808070292,1.55088344,59247.0,59246.0,0.206]
[1724808070536,1.97425244,59247.0,59246.0,0.2]
[1724808070746,2.33482144,59247.0,59246.0,0.2]
[1724808070958,2.46124846,59247.0,59246.0,0.206]
[1724808071205,2.12367946,59247.0,59246.0,0.206]
[1724808071443,2.24953741,59247.0,59246.0,0.206]
[1724808071856,2.22436523,59247.0,59246.0,0.206]
[1724808072054,2.12367946,59247.0,59246.0,0.206]
[1724808072932,2.22430031,59247.0,59246.0,0.2]
[1724808073352,2.17267819,59247.0,59246.0,0.2]
[1724808073565,2.17467819,59247.0,59246.0,0.201]
[1724808073996,2.1236809,59247.0,59246.0,0.2]
[1724808074216,2.22630175,59247.0,59246.0,0.201]
[1724808074434,2.1746494,59247.0,59246.0,0.201]
[1724808074634,2.1726494,59247.0,59246.0,0.2]
[1724808075054,1.779114,59245.0,59244.0,0.000818]
[1724808075276,2.07057477,59245.0,59244.0,0.000818]
[1724808075482,2.08307995,59245.0,59244.0,0.000818]
[1724808076484,2.08407995,59245.0,59244.0,0.001818]
[1724808076631,2.08407995,59245.0,59244.0,0.000818]
[1724808077062,2.08507995,59245.0,59244.0,0.001818]
[1724808077266,2.08307995,59245.0,59244.0,0.000818]
[1724808077672,2.08407995,59245.0,59244.0,0.001818]
[1724808078498,2.18709461,59245.0,59244.0,0.001818]
[1724808078907,2.08307995,59245.0,59244.0,0.000818]
[1724808079303,2.08407995,59245.0,59244.0,0.001818]
[1724808079570,2.08407995,59245.0,59244.0,0.000818]
[1724808079992,2.08507995,59245.0,59244.0,0.001818]
[1724808080144,2.08307995,59245.0,59244.0,0.000818]
[1724808080358,2.25263159,59245.0,59244.0,0.001818]
[1724808080593,2.59021259,59245.0,59244.0,0.001818]
[1724808080766,0.511584,59220.0,59219.0,0.000818]
[1724808080947,1.01276777,59220.0,59219.0,0.000818]
[1724808081152,2.71012064,59220.0,59219.0,0.000818]
[1724808081358,2.73312064,59220.0,59219.0,0.000818]
[1724808081572,1.73465517,59212.0,59191.0,0.0004]
[1724808081746,2.32168494,59212.0,59191.0,0.0004]
[1724808081957,2.45679516,59212.0,59191.0,0.0004]
[1724808082163,2.9631158,59212.0,59191.0,0.0004]
[1724808082411,1.702813,59206.0,59191.0,0.0004]
[1724808082611,1.40121073,59205.0,59191.0,0.0004]
[1724808082825,0.88158817,59192.0,59191.0,0.0004]
[1724808083013,1.90351494,59192.0,59191.0,0.0004]
[1724808083217,1.53375077,59192.0,59191.0,0.0004]
[1724808083463,1.54586099,59192.0,59191.0,0.0004]
[1724808084249,1.02527799,59192.0,59191.0,0.0004]
[1724808085446,0.68739499,59192.0,59191.0,0.0004]
[1724808086023,0.72086489,59192.0,59191.0,0.0004]
[1724808086841,1.05174789,59192.0,59191.0,0.0004]
[1724808087295,1.05674789,59192.0,59191.0,0.0004]
[1724808087506,1.05174789,59192.0,59191.0,0.0004]
[1724808087712,1.39163089,59192.0,59191.0,0.0004]
[1724808087921,1.70879398,59192.0,59191.0,0.0004]
[1724808088137,2.13557698,59192.0,59191.0,0.0004]
[1724808088339,2.10910708,59192.0,59191.0,0.0004]
[1724808088562,2.06944399,59192.0,59191.0,0.0004]
[1724808089203,2.06744399,59192.0,59191.0,0.0004]
[1724808089834,2.07544399,59192.0,59191.0,0.0004]
[1724808090012,2.06744399,59192.0,59191.0,0.0004]
[1724808090978,2.08144399,59192.0,59191.0,0.0004]
[1724808091205,1.99254399,59192.0,59191.0,0.0004]
[1724808092304,1.97854399,59192.0,59191.0,0.0004]
[1724808092511,1.99254399,59192.0,59191.0,0.0004]
[1724808092726,2.01901654,59192.0,59191.0,0.0004]
[1724808092935,2.00501654,59192.0,59191.0,0.0004]
[1724808093138,2.01801654,59192.0,59191.0,0.0004]
[1724808094876,1.40263354,59192.0,59191.0,0.0004]
[1724808095114,1.40763354,59192.0,59191.0,0.0004]
[1724808096249,1.40263354,59192.0,59191.0,0.0004]
[1724808096466,1.40763354,59192.0,59191.0,0.0004]
[1724808096908,1.40263354,59192.0,59191.0,0.001218]
[1724808097363,1.39898594,59192.0,59191.0,0.001218]
[1724808097590,1.39052332,59192.0,59191.0,0.001218]
[1724808097802,1.05264032,59192.0,59191.0,0.001218]
[1724808098063,1.05264032,59192.0,59191.0,0.141218]
[1724808098064,0.20841355,59192.0,59191.0,0.141218]
[1724808098547,0.00422375,59193.0,59191.0,0.141218]
[1724808098780,0.006,59192.0,59191.0,0.141218]
[1724808099020,0.168936,59194.0,59191.0,0.141218]
[1724808099269,0.168919,59200.0,59192.0,0.1686]
[1724808099504,0.168929,59197.0,59193.0,0.14]
[1724808099720,0.17315354,59196.0,59194.0,0.1686]
[1724808099931,0.168933,59195.0,59194.0,0.1686]
[1724808100360,0.00422351,59196.0,59194.0,0.1686]
[1724808101098,0.168933,59195.0,59194.0,0.1686]
[1724808101525,0.506799,59195.0,59194.0,0.1686]
[1724808101731,0.168933,59195.0,59194.0,0.1686]
[1724808102407,0.169933,59195.0,59194.0,0.1706]
[1724808103066,0.001,59195.0,59194.0,0.1706]
[1724808103503,0.001,59195.0,59194.0,0.3106]
[1724808103955,0.00089981,59204.0,59195.0,0.3086]
[1724808104185,0.00089981,59204.0,59196.0,0.17183896]
[1724808104402,0.00089981,59204.0,59198.0,0.67836417]
[1724808104633,0.00089981,59204.0,59200.0,0.3086]
[1724808104857,0.00089981,59204.0,59202.0,0.3303]
[1724808105070,0.00089981,59204.0,59203.0,0.60213848]
[1724808105279,0.00089981,59204.0,59203.0,0.50213848]
[1724808105488,0.00089981,59204.0,59203.0,0.60213848]
[1724808105715,0.17308614,59219.0,59203.0,0.27183848]
[1724808105951,0.00422205,59217.0,59204.0,0.4119]
[1724808106184,0.168899,59207.0,59204.0,0.4119]
[1724808106456,0.168894,59209.0,59204.0,0.4119]
[1724808106682,0.00422258,59208.0,59204.0,0.4119]
[1724808106892,0.168893,59209.0,59204.0,0.4119]
[1724808107107,0.00422258,59208.0,59204.0,0.4119]
[1724808107511,0.00422258,59210.0,59204.0,0.3119]